[Event "Titled Tuesday Blitz February 14 Early 2023"]
[White "Mouhamad, Joachim"]
[Black "Tanenbaum, Zachary"]
[WhiteFideId "656410"]
[BlackFideId "2060850"]
[WhiteElo "2238"]
[BlackElo "2261"]
[Result "0-1"]
[Round "01"]
[TimeControl "180+2"]
[Date "2023.02.15"]
[WhiteClock "0:00:10"]
[BlackClock "0:00:10"]

1. e4 {[%clk 0:03:00]}  e5 {[%clk 0:02:58]} 2. Nf3 {[%clk 0:03:01]}  Nc6 {[%clk 0:02:59]} 3. Bb5 {[%clk 0:03:01]}  a6 {[%clk 0:02:58]} 4. Ba4 {[%clk 0:03:01]}  d6 {[%clk 0:02:59]} 5. c3 {[%clk 0:03:01]}  Nf6 {[%clk 0:03:00]} 6. O-O {[%clk 0:02:57]}  Be7 {[%clk 0:03:00]} 7. Re1 {[%clk 0:02:57]}  O-O {[%clk 0:02:59]} 8. h3 {[%clk 0:02:57]}  b5 {[%clk 0:02:59]} 9. Bc2 {[%clk 0:02:56]}  d5 {[%clk 0:02:55]} 10. exd5 {[%clk 0:02:55]}  Qxd5 {[%clk 0:02:56]} 11. d3 {[%clk 0:02:54]}  h6 {[%clk 0:02:20]} 12. Nbd2 {[%clk 0:02:52]}  Bf5 {[%clk 0:02:21]} 13. Qe2 {[%clk 0:02:50]}  Rad8 {[%clk 0:02:20]} 14. Ne4 {[%clk 0:02:51]}  Rfe8 {[%clk 0:01:59]} 15. a4 {[%clk 0:02:51]}  b4 {[%clk 0:01:58]} 16. Nfd2 {[%clk 0:02:43]}  Qd7 {[%clk 0:01:42]} 17. Nxf6+ {[%clk 0:02:41]}  Bxf6 {[%clk 0:01:42]} 18. Ne4 {[%clk 0:02:42]}  Be7 {[%clk 0:01:39]} 19. Be3 {[%clk 0:02:33]}  Bg6 {[%clk 0:01:24]} 20. Rad1 {[%clk 0:02:26]}  f5 {[%clk 0:01:22]} 21. Nc5 {[%clk 0:02:24]}  Bxc5 {[%clk 0:01:21]} 22. Bxc5 {[%clk 0:02:25]}  bxc3 {[%clk 0:01:18]} 23. bxc3 {[%clk 0:02:22]}  Qd5 {[%clk 0:01:15]} 24. Ba3 {[%clk 0:02:11]}  Kh7 {[%clk 0:01:11]} 25. Bb1 {[%clk 0:01:56]}  Qa5 {[%clk 0:01:05]} 26. Qc2 {[%clk 0:01:49]}  f4 {[%clk 0:00:54]} 27. Bc1 {[%clk 0:01:33]}  Qd5 {[%clk 0:00:39]} 28. Qe2 {[%clk 0:01:30]}  Qf7 {[%clk 0:00:34]} 29. Qf3 {[%clk 0:01:20]}  e4 {[%clk 0:00:34]} 30. Qxf4 {[%clk 0:00:54]}  Qb3 {[%clk 0:00:34]} 31. Be3 {[%clk 0:00:42]}  exd3 {[%clk 0:00:31]} 32. Qxc7 {[%clk 0:00:40]}  Qxa4 {[%clk 0:00:18]} 33. Rd2 {[%clk 0:00:35]}  Ne5 {[%clk 0:00:16]} 34. Red1 {[%clk 0:00:23]}  Nc4 {[%clk 0:00:14]} 35. Bd4 {[%clk 0:00:24]}  Rd7 {[%clk 0:00:13]} 36. Qf4 {[%clk 0:00:16]}  Nxd2 {[%clk 0:00:13]} 37. Qxd2 {[%clk 0:00:17]}  Re2 {[%clk 0:00:13]} 38. Qf4 {[%clk 0:00:10]}  Qxd1+ {[%clk 0:00:10]} 39. Kh2 {[%clk 0:00:10]}  Qxb1 {[%clk 0:00:10]} 0-1


[Site "https://www.chess.com"]

[Event "Titled Tuesday Blitz February 14 Early 2023"]
[White "Begunov, Konstantin"]
[Black "Starozhilov, Leonid"]
[WhiteFideId "4118510"]
[BlackFideId "14106752"]
[WhiteElo "2325"]
[BlackElo "2313"]
[Result "1/2-1/2"]
[Round "01"]
[TimeControl "180+2"]
[Date "2023.02.15"]
[WhiteClock "0:00:04"]
[BlackClock "0:00:05"]

1. d4 {[%clk 0:03:00]}  Nf6 {[%clk 0:02:57]} 2. c4 {[%clk 0:03:00]}  g6 {[%clk 0:02:58]} 3. f3 {[%clk 0:03:00]}  Bg7 {[%clk 0:02:57]} 4. e4 {[%clk 0:03:00]}  d6 {[%clk 0:02:58]} 5. Nc3 {[%clk 0:03:00]}  O-O {[%clk 0:02:57]} 6. Be3 {[%clk 0:03:01]}  Nc6 {[%clk 0:02:57]} 7. Nge2 {[%clk 0:03:00]}  a6 {[%clk 0:02:56]} 8. a3 {[%clk 0:03:00]}  Bd7 {[%clk 0:02:46]} 9. b4 {[%clk 0:03:00]}  e5 {[%clk 0:02:44]} 10. d5 {[%clk 0:02:59]}  Ne7 {[%clk 0:02:43]} 11. Qd2 {[%clk 0:02:58]}  Nh5 {[%clk 0:02:33]} 12. g4 {[%clk 0:02:57]}  Nf4 {[%clk 0:02:33]} 13. Nxf4 {[%clk 0:02:57]}  exf4 {[%clk 0:02:34]} 14. Bxf4 {[%clk 0:02:58]}  f5 {[%clk 0:02:34]} 15. exf5 {[%clk 0:02:58]}  gxf5 {[%clk 0:02:35]} 16. g5 {[%clk 0:02:57]}  Ng6 {[%clk 0:02:35]} 17. Rc1 {[%clk 0:02:51]}  Re8+ {[%clk 0:02:24]} 18. Kf2 {[%clk 0:02:48]}  Nxf4 {[%clk 0:02:09]} 19. Qxf4 {[%clk 0:02:49]}  Be5 {[%clk 0:02:10]} 20. Qd2 {[%clk 0:02:49]}  Qe7 {[%clk 0:02:05]} 21. f4 {[%clk 0:02:31]}  Bg7 {[%clk 0:02:02]} 22. Bg2 {[%clk 0:02:22]}  Qf7 {[%clk 0:01:45]} 23. Bf3 {[%clk 0:02:12]}  a5 {[%clk 0:01:21]} 24. b5 {[%clk 0:01:57]}  a4 {[%clk 0:01:20]} 25. h4 {[%clk 0:01:47]}  Re7 {[%clk 0:01:13]} 26. Rce1 {[%clk 0:01:25]}  Rae8 {[%clk 0:00:56]} 27. h5 {[%clk 0:01:21]}  h6 {[%clk 0:00:46]} 28. g6 {[%clk 0:00:54]}  Qf6 {[%clk 0:00:43]} 29. Rxe7 {[%clk 0:00:54]}  Rxe7 {[%clk 0:00:36]} 30. Nxa4 {[%clk 0:00:47]}  Qd4+ {[%clk 0:00:34]} 31. Qxd4 {[%clk 0:00:44]}  Bxd4+ {[%clk 0:00:35]} 32. Kg2 {[%clk 0:00:37]}  Re3 {[%clk 0:00:33]} 33. Rd1 {[%clk 0:00:36]}  Bf6 {[%clk 0:00:31]} 34. c5 {[%clk 0:00:15]}  Bxb5 {[%clk 0:00:26]} 35. cxd6 {[%clk 0:00:12]}  Bxa4 {[%clk 0:00:19]} 36. dxc7 {[%clk 0:00:12]}  Rc3 {[%clk 0:00:19]} 37. d6 {[%clk 0:00:08]}  Bxd1 {[%clk 0:00:15]} 38. Bxd1 {[%clk 0:00:04]}  Kf8 {[%clk 0:00:13]} 39. Bf3 {[%clk 0:00:04]}  Rc2+ {[%clk 0:00:12]} 40. Kf1 {[%clk 0:00:03]}  Rc1+ {[%clk 0:00:05]} 41. Ke2 {[%clk 0:00:03]}  Rc2+ {[%clk 0:00:05]} 42. Kd1 {[%clk 0:00:03]}  Rc3 {[%clk 0:00:02]} 43. Bxb7 {[%clk 0:00:04]}  Re3 {[%clk 0:00:01]} 44. c8=Q+ {[%clk 0:00:03]}  Kg7 {[%clk 0:00:02]} 45. Qd7+ {[%clk 0:00:03]}  Be7 {[%clk 0:00:03]} 46. Bd5 {[%clk 0:00:04]}  Rd3+ {[%clk 0:00:04]} 47. Ke2 {[%clk 0:00:04]}  Re3+ {[%clk 0:00:04]} 48. Kxe3 {[%clk 0:00:03]}  Kh8 {[%clk 0:00:05]} 49. Qxe7 {[%clk 0:00:04]} 1/2-1/2


[Site "https://www.chess.com"]

[Event "Titled Tuesday Blitz February 14 Early 2023"]
[White "Alex_Sahakyan2006"]
[Black "Pourkashiyan, Atousa"]
[BlackFideId "12502014"]
[WhiteElo "2715"]
[BlackElo "2282"]
[Result "1-0"]
[Round "01"]
[TimeControl "180+2"]
[Date "2023.02.15"]
[WhiteClock "0:00:50"]
[BlackClock "0:00:18"]

1. e4 {[%clk 0:02:55]}  c5 {[%clk 0:02:59]} 2. Nc3 {[%clk 0:02:52]}  e6 {[%clk 0:02:58]} 3. Nf3 {[%clk 0:02:51]}  a6 {[%clk 0:02:57]} 4. d4 {[%clk 0:02:49]}  cxd4 {[%clk 0:02:58]} 5. Nxd4 {[%clk 0:02:50]}  Qc7 {[%clk 0:02:59]} 6. a4 {[%clk 0:02:45]}  Nf6 {[%clk 0:02:59]} 7. Bd3 {[%clk 0:02:42]}  Bb4 {[%clk 0:02:59]} 8. O-O {[%clk 0:02:42]}  O-O {[%clk 0:02:58]} 9. Qe2 {[%clk 0:02:34]}  d6 {[%clk 0:02:55]} 10. Be3 {[%clk 0:02:15]}  Nbd7 {[%clk 0:02:48]} 11. f4 {[%clk 0:02:06]}  Bxc3 {[%clk 0:02:44]} 12. bxc3 {[%clk 0:02:05]}  Qxc3 {[%clk 0:02:45]} 13. Qf3 {[%clk 0:01:45]}  Qc7 {[%clk 0:02:28]} 14. g4 {[%clk 0:01:35]}  Nc5 {[%clk 0:02:08]} 15. g5 {[%clk 0:01:33]}  Nfd7 {[%clk 0:02:08]} 16. Qh5 {[%clk 0:01:30]}  b6 {[%clk 0:02:03]} 17. Rf3 {[%clk 0:01:28]}  Re8 {[%clk 0:01:43]} 18. f5 {[%clk 0:01:17]}  e5 {[%clk 0:01:23]} 19. Bc4 {[%clk 0:00:56]}  Nf8 {[%clk 0:01:18]} 20. g6 {[%clk 0:00:56]}  Bd7 {[%clk 0:00:18]} 21. Bxf7+ {[%clk 0:00:51]}  Kh8 {[%clk 0:00:18]} 22. Qxh7+ {[%clk 0:00:49]}  Nxh7 {[%clk 0:00:18]} 23. Rh3 {[%clk 0:00:50]} 1-0


[Site "https://www.chess.com"]

[Event "Titled Tuesday Blitz February 14 Early 2023"]
[White "Ramirez Vido, Robert Yorisan"]
[Black "Wagh Suyog"]
[WhiteFideId "3513823"]
[BlackFideId "25071688"]
[WhiteElo "2015"]
[BlackElo "2313"]
[Result "1/2-1/2"]
[Round "01"]
[TimeControl "180+2"]
[Date "2023.02.15"]
[WhiteClock "0:00:14"]
[BlackClock "0:00:10"]

1. f4 {[%clk 0:02:41]}  d5 {[%clk 0:02:58]} 2. Nf3 {[%clk 0:02:34]}  g6 {[%clk 0:02:58]} 3. g3 {[%clk 0:02:30]}  Bg7 {[%clk 0:02:55]} 4. Bg2 {[%clk 0:02:31]}  c5 {[%clk 0:02:54]} 5. d3 {[%clk 0:02:31]}  Nc6 {[%clk 0:02:54]} 6. O-O {[%clk 0:02:31]}  Nf6 {[%clk 0:02:55]} 7. Qe1 {[%clk 0:02:32]}  d4 {[%clk 0:02:49]} 8. a4 {[%clk 0:02:26]}  Nd5 {[%clk 0:02:47]} 9. Na3 {[%clk 0:02:24]}  O-O {[%clk 0:02:46]} 10. Nc4 {[%clk 0:02:23]}  Rb8 {[%clk 0:02:41]} 11. Bd2 {[%clk 0:02:22]}  b6 {[%clk 0:02:41]} 12. Rb1 {[%clk 0:02:18]}  Bb7 {[%clk 0:02:41]} 13. e4 {[%clk 0:02:17]}  dxe3 {[%clk 0:02:40]} 14. Nxe3 {[%clk 0:02:18]}  Nd4 {[%clk 0:02:39]} 15. Nxd4 {[%clk 0:01:57]}  Bxd4 {[%clk 0:02:31]} 16. Kh1 {[%clk 0:01:51]}  Re8 {[%clk 0:02:22]} 17. Nc4 {[%clk 0:01:40]}  e6 {[%clk 0:02:12]} 18. Ne5 {[%clk 0:01:32]}  Qc7 {[%clk 0:02:07]} 19. c3 {[%clk 0:01:29]}  Bxe5 {[%clk 0:02:06]} 20. fxe5 {[%clk 0:01:30]}  Ne7 {[%clk 0:02:00]} 21. Qf2 {[%clk 0:01:20]}  Bxg2+ {[%clk 0:01:59]} 22. Kxg2 {[%clk 0:01:21]}  Nd5 {[%clk 0:01:46]} 23. Rbe1 {[%clk 0:01:16]}  Qe7 {[%clk 0:01:37]} 24. h4 {[%clk 0:01:15]}  h5 {[%clk 0:01:33]} 25. Bg5 {[%clk 0:01:14]}  Qb7 {[%clk 0:01:33]} 26. Kh2 {[%clk 0:01:13]}  Rbc8 {[%clk 0:01:26]} 27. Qd2 {[%clk 0:01:09]}  a6 {[%clk 0:01:09]} 28. Bf6 {[%clk 0:01:08]}  Kh7 {[%clk 0:01:07]} 29. Rf2 {[%clk 0:01:03]}  Nxf6 {[%clk 0:01:06]} 30. Rxf6 {[%clk 0:00:58]}  Rcd8 {[%clk 0:01:06]} 31. Ref1 {[%clk 0:00:57]}  Re7 {[%clk 0:01:05]} 32. Qf4 {[%clk 0:00:52]}  Rxd3 {[%clk 0:00:42]} 33. Rxf7+ {[%clk 0:00:50]}  Rxf7 {[%clk 0:00:43]} 34. Qxf7+ {[%clk 0:00:50]}  Qxf7 {[%clk 0:00:44]} 35. Rxf7+ {[%clk 0:00:50]}  Kh6 {[%clk 0:00:44]} 36. Rf6 {[%clk 0:00:42]}  Rd2+ {[%clk 0:00:43]} 37. Kh3 {[%clk 0:00:42]}  Rxb2 {[%clk 0:00:44]} 38. Rxe6 {[%clk 0:00:42]}  Rb3 {[%clk 0:00:43]} 39. Rc6 {[%clk 0:00:37]}  a5 {[%clk 0:00:39]} 40. e6 {[%clk 0:00:34]}  Kg7 {[%clk 0:00:31]} 41. e7 {[%clk 0:00:30]}  Kf7 {[%clk 0:00:31]} 42. Rxg6 {[%clk 0:00:28]}  Kxe7 {[%clk 0:00:30]} 43. Rh6 {[%clk 0:00:21]}  Rxc3 {[%clk 0:00:20]} 44. Rxb6 {[%clk 0:00:21]}  Rc4 {[%clk 0:00:20]} 45. Rb5 {[%clk 0:00:20]}  Kd6 {[%clk 0:00:15]} 46. Rxa5 {[%clk 0:00:20]}  Rc1 {[%clk 0:00:15]} 47. g4 {[%clk 0:00:15]}  Rc3+ {[%clk 0:00:15]} 48. Kg2 {[%clk 0:00:15]}  hxg4 {[%clk 0:00:15]} 49. h5 {[%clk 0:00:15]}  Ke6 {[%clk 0:00:13]} 50. h6 {[%clk 0:00:15]}  Kf7 {[%clk 0:00:12]} 51. h7 {[%clk 0:00:15]}  Kg7 {[%clk 0:00:12]} 52. Ra7+ {[%clk 0:00:16]}  Kh8 {[%clk 0:00:12]} 53. a5 {[%clk 0:00:17]}  Ra3 {[%clk 0:00:12]} 54. a6 {[%clk 0:00:15]}  c4 {[%clk 0:00:12]} 55. Rc7 {[%clk 0:00:14]}  Rxa6 {[%clk 0:00:08]} 56. Rxc4 {[%clk 0:00:15]}  Kxh7 {[%clk 0:00:09]} 57. Rxg4 {[%clk 0:00:15]}  Rg6 {[%clk 0:00:09]} 58. Rxg6 {[%clk 0:00:14]}  Kxg6 {[%clk 0:00:10]} 1/2-1/2


[Site "https://www.chess.com"]

[Event "Titled Tuesday Blitz February 14 Early 2023"]
[White "Mushini Ajay"]
[Black "Tatarinov, Dmitry"]
[WhiteFideId "35066188"]
[BlackFideId "24160067"]
[WhiteElo "2310"]
[BlackElo "2310"]
[Result "1-0"]
[Round "01"]
[TimeControl "180+2"]
[Date "2023.02.15"]
[WhiteClock "0:00:21"]
[BlackClock "0:00:15"]

1. e4 {[%clk 0:02:50]}  e5 {[%clk 0:02:52]} 2. Nf3 {[%clk 0:02:49]}  Nc6 {[%clk 0:02:52]} 3. Bb5 {[%clk 0:02:48]}  a6 {[%clk 0:02:53]} 4. Bxc6 {[%clk 0:02:48]}  dxc6 {[%clk 0:02:53]} 5. d3 {[%clk 0:02:47]}  f6 {[%clk 0:02:49]} 6. Nbd2 {[%clk 0:02:46]}  Be6 {[%clk 0:02:48]} 7. Nc4 {[%clk 0:02:45]}  Qd7 {[%clk 0:02:42]} 8. Be3 {[%clk 0:02:44]}  Ne7 {[%clk 0:02:37]} 9. h3 {[%clk 0:02:39]}  a5 {[%clk 0:02:34]} 10. a4 {[%clk 0:02:38]}  Ng6 {[%clk 0:02:31]} 11. Qe2 {[%clk 0:02:37]}  Be7 {[%clk 0:02:28]} 12. h4 {[%clk 0:02:34]}  h5 {[%clk 0:02:28]} 13. d4 {[%clk 0:02:27]}  Bg4 {[%clk 0:02:22]} 14. O-O-O {[%clk 0:02:22]}  exd4 {[%clk 0:02:20]} 15. Rxd4 {[%clk 0:02:17]}  Qe6 {[%clk 0:02:20]} 16. Kb1 {[%clk 0:02:06]}  O-O {[%clk 0:02:18]} 17. Qd2 {[%clk 0:02:03]}  Bc5 {[%clk 0:02:15]} 18. Nxa5 {[%clk 0:01:41]}  Bxf3 {[%clk 0:02:12]} 19. gxf3 {[%clk 0:01:35]}  Bxd4 {[%clk 0:02:12]} 20. Bxd4 {[%clk 0:01:35]}  b6 {[%clk 0:02:11]} 21. Nb3 {[%clk 0:01:30]}  c5 {[%clk 0:02:11]} 22. Bc3 {[%clk 0:01:25]}  Rxa4 {[%clk 0:02:09]} 23. Rg1 {[%clk 0:01:25]}  Kh7 {[%clk 0:02:05]} 24. Qe2 {[%clk 0:01:22]}  Rfa8 {[%clk 0:02:03]} 25. Qe3 {[%clk 0:01:17]}  c4 {[%clk 0:01:59]} 26. Na5 {[%clk 0:00:51]}  bxa5 {[%clk 0:01:47]} 27. f4 {[%clk 0:00:49]}  Nf8 {[%clk 0:01:35]} 28. f5 {[%clk 0:00:39]}  Qf7 {[%clk 0:01:35]} 29. e5 {[%clk 0:00:38]}  fxe5 {[%clk 0:01:26]} 30. Qxe5 {[%clk 0:00:33]}  Nd7 {[%clk 0:00:22]} 31. Rxg7+ {[%clk 0:00:30]}  Kh8 {[%clk 0:00:21]} 32. Qxc7 {[%clk 0:00:20]}  Qxg7 {[%clk 0:00:14]} 33. Bxg7+ {[%clk 0:00:21]}  Kxg7 {[%clk 0:00:15]} 34. Qxd7+ {[%clk 0:00:21]} 1-0


[Site "https://www.chess.com"]

[Event "Titled Tuesday Blitz February 14 Early 2023"]
[White "Matinian, Nikita"]
[Black "Kalajzic, Ivan"]
[WhiteFideId "24129100"]
[BlackFideId "14506378"]
[WhiteElo "2407"]
[BlackElo "2062"]
[Result "1-0"]
[Round "01"]
[TimeControl "180+2"]
[Date "2023.02.15"]
[WhiteClock "0:01:46"]
[BlackClock "0:00:38"]

1. e4 {[%clk 0:03:00]}  Nc6 {[%clk 0:02:59]} 2. Nf3 {[%clk 0:02:58]}  d6 {[%clk 0:02:59]} 3. d4 {[%clk 0:02:58]}  Bg4 {[%clk 0:02:58]} 4. d5 {[%clk 0:02:53]}  Ne5 {[%clk 0:02:58]} 5. Nxe5 {[%clk 0:02:51]}  Bxd1 {[%clk 0:02:57]} 6. Bb5+ {[%clk 0:02:51]}  c6 {[%clk 0:02:56]} 7. dxc6 {[%clk 0:02:51]}  Qa5+ {[%clk 0:02:54]} 8. Nc3 {[%clk 0:02:51]}  a6 {[%clk 0:02:54]} 9. b4 {[%clk 0:02:34]}  Qxb5 {[%clk 0:02:54]} 10. Nxb5 {[%clk 0:02:31]}  axb5 {[%clk 0:02:55]} 11. cxb7 {[%clk 0:02:28]}  Rb8 {[%clk 0:02:55]} 12. Nc6 {[%clk 0:02:26]}  Rxb7 {[%clk 0:02:55]} 13. Kxd1 {[%clk 0:02:25]}  Nf6 {[%clk 0:02:44]} 14. f3 {[%clk 0:02:23]}  Nd7 {[%clk 0:02:43]} 15. a4 {[%clk 0:02:23]}  bxa4 {[%clk 0:02:24]} 16. Rxa4 {[%clk 0:02:24]}  Nb6 {[%clk 0:02:24]} 17. Ra6 {[%clk 0:02:24]}  Kd7 {[%clk 0:02:17]} 18. Na5 {[%clk 0:02:22]}  Rb8 {[%clk 0:02:13]} 19. Be3 {[%clk 0:02:21]}  Nc8 {[%clk 0:02:08]} 20. Nc6 {[%clk 0:02:16]}  Rb7 {[%clk 0:02:01]} 21. c4 {[%clk 0:02:16]}  e6 {[%clk 0:01:54]} 22. Ke2 {[%clk 0:02:16]}  Be7 {[%clk 0:01:51]} 23. Rd1 {[%clk 0:02:16]}  Nb6 {[%clk 0:01:15]} 24. Nxe7 {[%clk 0:02:11]}  Nxc4 {[%clk 0:01:12]} 25. Nc6 {[%clk 0:02:10]}  Rc8 {[%clk 0:01:08]} 26. Na5 {[%clk 0:01:58]}  Rxb4 {[%clk 0:00:57]} 27. Nxc4 {[%clk 0:01:56]}  Rcxc4 {[%clk 0:00:50]} 28. Raxd6+ {[%clk 0:01:56]}  Ke7 {[%clk 0:00:50]} 29. Bg5+ {[%clk 0:01:50]}  f6 {[%clk 0:00:46]} 30. Rd7+ {[%clk 0:01:50]}  Ke8 {[%clk 0:00:46]} 31. Be3 {[%clk 0:01:50]}  Rb2+ {[%clk 0:00:42]} 32. R1d2 {[%clk 0:01:48]}  Rcc2 {[%clk 0:00:38]} 33. Rxg7 {[%clk 0:01:46]} 1-0


[Site "https://www.chess.com"]

[Event "Titled Tuesday Blitz February 14 Early 2023"]
[White "Prieto Aranguren, Alain"]
[Black "Csonka, Balazs"]
[WhiteFideId "2268906"]
[BlackFideId "742910"]
[WhiteElo "2258"]
[BlackElo "2496"]
[Result "0-1"]
[Round "01"]
[TimeControl "180+2"]
[Date "2023.02.15"]
[WhiteClock "0:00:33"]
[BlackClock "0:00:06"]

1. d4 {[%clk 0:02:57]}  d5 {[%clk 0:02:57]} 2. c4 {[%clk 0:02:55]}  dxc4 {[%clk 0:02:58]} 3. e3 {[%clk 0:02:54]}  Nf6 {[%clk 0:02:56]} 4. Bxc4 {[%clk 0:02:54]}  e6 {[%clk 0:02:57]} 5. Nf3 {[%clk 0:02:54]}  a6 {[%clk 0:02:57]} 6. O-O {[%clk 0:02:52]}  b5 {[%clk 0:02:58]} 7. Be2 {[%clk 0:02:51]}  Bb7 {[%clk 0:02:54]} 8. Nbd2 {[%clk 0:02:49]}  Nbd7 {[%clk 0:02:47]} 9. b3 {[%clk 0:02:48]}  c5 {[%clk 0:02:46]} 10. dxc5 {[%clk 0:02:47]}  Bxc5 {[%clk 0:02:39]} 11. Bb2 {[%clk 0:02:47]}  O-O {[%clk 0:02:39]} 12. Ne5 {[%clk 0:02:47]}  Nxe5 {[%clk 0:01:50]} 13. Bxe5 {[%clk 0:02:46]}  Bb4 {[%clk 0:01:51]} 14. Nf3 {[%clk 0:02:38]}  Ne4 {[%clk 0:01:50]} 15. Qxd8 {[%clk 0:02:34]}  Rfxd8 {[%clk 0:01:49]} 16. Rac1 {[%clk 0:02:33]}  Rac8 {[%clk 0:01:35]} 17. Rfd1 {[%clk 0:02:31]}  Rxd1+ {[%clk 0:01:24]} 18. Rxd1 {[%clk 0:02:29]}  f6 {[%clk 0:01:18]} 19. Bd4 {[%clk 0:02:19]}  Rc2 {[%clk 0:00:55]} 20. Bd3 {[%clk 0:02:04]}  Rxa2 {[%clk 0:00:55]} 21. Rc1 {[%clk 0:02:04]}  Nxf2 {[%clk 0:00:37]} 22. Bb1 {[%clk 0:01:39]}  Re2 {[%clk 0:00:36]} 23. Kf1 {[%clk 0:01:34]}  Bd2 {[%clk 0:00:06]} 24. Rc7 {[%clk 0:01:26]}  Bxf3 {[%clk 0:00:06]} 25. gxf3 {[%clk 0:01:21]}  Re1+ {[%clk 0:00:06]} 26. Kxf2 {[%clk 0:01:21]}  Rxb1 {[%clk 0:00:07]} 27. Ke2 {[%clk 0:01:13]}  Bb4 {[%clk 0:00:05]} 28. Rc6 {[%clk 0:01:10]}  e5 {[%clk 0:00:06]} 29. Ba7 {[%clk 0:01:10]}  a5 {[%clk 0:00:05]} 30. Rb6 {[%clk 0:01:09]}  Rxb3 {[%clk 0:00:04]} 31. Rxb5 {[%clk 0:01:08]}  h5 {[%clk 0:00:05]} 32. Bb6 {[%clk 0:01:04]}  Rb2+ {[%clk 0:00:05]} 33. Kd3 {[%clk 0:01:03]}  Rxh2 {[%clk 0:00:06]} 34. Ke4 {[%clk 0:01:03]}  Kf7 {[%clk 0:00:05]} 35. Bxa5 {[%clk 0:01:03]}  Bxa5 {[%clk 0:00:06]} 36. Rxa5 {[%clk 0:01:03]}  Rh4+ {[%clk 0:00:06]} 37. Kd5 {[%clk 0:01:00]}  Rb4 {[%clk 0:00:06]} 38. Ra7+ {[%clk 0:01:00]}  Kg6 {[%clk 0:00:07]} 39. Ke6 {[%clk 0:01:00]}  Rb3 {[%clk 0:00:06]} 40. f4 {[%clk 0:00:59]}  exf4 {[%clk 0:00:05]} 41. exf4 {[%clk 0:00:59]}  Re3+ {[%clk 0:00:06]} 42. Kd5 {[%clk 0:00:57]}  h4 {[%clk 0:00:06]} 43. Kd4 {[%clk 0:00:57]}  Re1 {[%clk 0:00:05]} 44. Ra8 {[%clk 0:00:52]}  Kf5 {[%clk 0:00:04]} 45. Rh8 {[%clk 0:00:51]}  Rh1 {[%clk 0:00:03]} 46. Rh7 {[%clk 0:00:49]}  g5 {[%clk 0:00:02]} 47. fxg5 {[%clk 0:00:48]}  fxg5 {[%clk 0:00:03]} 48. Rf7+ {[%clk 0:00:48]}  Kg4 {[%clk 0:00:04]} 49. Ke3 {[%clk 0:00:48]}  Kg3 {[%clk 0:00:04]} 50. Rf5 {[%clk 0:00:46]}  g4 {[%clk 0:00:04]} 51. Ke2 {[%clk 0:00:46]}  Rh2+ {[%clk 0:00:04]} 52. Kf1 {[%clk 0:00:45]}  Ra2 {[%clk 0:00:05]} 53. Rb5 {[%clk 0:00:45]}  h3 {[%clk 0:00:05]} 54. Rb3+ {[%clk 0:00:44]}  Kh2 {[%clk 0:00:06]} 55. Rb4 {[%clk 0:00:41]}  g3 {[%clk 0:00:05]} 56. Rg4 {[%clk 0:00:34]}  g2+ {[%clk 0:00:06]} 57. Ke1 {[%clk 0:00:33]}  g1=Q+ {[%clk 0:00:06]} 0-1


[Site "https://www.chess.com"]

[Event "Titled Tuesday Blitz February 14 Early 2023"]
[White "Mindlin, Alon"]
[Black "Fernandez Siles, Luis"]
[WhiteFideId "2800071"]
[BlackFideId "2209420"]
[WhiteElo "2435"]
[BlackElo "2218"]
[Result "1-0"]
[Round "01"]
[TimeControl "180+2"]
[Date "2023.02.15"]
[WhiteClock "0:02:05"]
[BlackClock "0:00:45"]

1. d4 {[%clk 0:03:00]}  Nf6 {[%clk 0:02:59]} 2. c4 {[%clk 0:03:00]}  g6 {[%clk 0:02:59]} 3. Nc3 {[%clk 0:02:59]}  Bg7 {[%clk 0:02:59]} 4. e4 {[%clk 0:02:58]}  d6 {[%clk 0:02:59]} 5. f3 {[%clk 0:02:58]}  O-O {[%clk 0:02:59]} 6. Be3 {[%clk 0:02:55]}  e5 {[%clk 0:02:59]} 7. Nge2 {[%clk 0:02:54]}  c6 {[%clk 0:02:57]} 8. d5 {[%clk 0:02:53]}  cxd5 {[%clk 0:02:57]} 9. cxd5 {[%clk 0:02:54]}  a6 {[%clk 0:02:52]} 10. Qd2 {[%clk 0:02:54]}  Nbd7 {[%clk 0:02:49]} 11. g4 {[%clk 0:02:54]}  h5 {[%clk 0:02:46]} 12. h3 {[%clk 0:02:53]}  b5 {[%clk 0:02:45]} 13. Ng3 {[%clk 0:02:52]}  h4 {[%clk 0:02:38]} 14. Nge2 {[%clk 0:02:52]}  Ne8 {[%clk 0:02:31]} 15. O-O-O {[%clk 0:02:45]}  Bb7 {[%clk 0:02:29]} 16. Kb1 {[%clk 0:02:45]}  Nc7 {[%clk 0:02:18]} 17. Nc1 {[%clk 0:02:43]}  b4 {[%clk 0:02:16]} 18. Na4 {[%clk 0:02:41]}  a5 {[%clk 0:02:15]} 19. Nb3 {[%clk 0:02:41]}  Ba6 {[%clk 0:02:07]} 20. Rc1 {[%clk 0:02:37]}  Bxf1 {[%clk 0:02:05]} 21. Rhxf1 {[%clk 0:02:38]}  f5 {[%clk 0:01:49]} 22. gxf5 {[%clk 0:02:36]}  gxf5 {[%clk 0:01:49]} 23. exf5 {[%clk 0:02:31]}  Rxf5 {[%clk 0:01:48]} 24. Qc2 {[%clk 0:02:31]}  Nxd5 {[%clk 0:01:30]} 25. Qxf5 {[%clk 0:02:30]}  Nxe3 {[%clk 0:01:30]} 26. Qe6+ {[%clk 0:02:30]}  Kh8 {[%clk 0:01:27]} 27. Rg1 {[%clk 0:02:28]}  Nf6 {[%clk 0:01:15]} 28. Rxg7 {[%clk 0:02:18]}  Kxg7 {[%clk 0:01:14]} 29. Rg1+ {[%clk 0:02:17]}  Kh8 {[%clk 0:00:55]} 30. Nb6 {[%clk 0:02:10]}  Ra7 {[%clk 0:00:53]} 31. Nc8 {[%clk 0:02:07]}  Rg7 {[%clk 0:00:48]} 32. Rxg7 {[%clk 0:02:05]}  Kxg7 {[%clk 0:00:48]} 33. Nxd6 {[%clk 0:02:06]}  Qe7 {[%clk 0:00:45]} 34. Qxe7+ {[%clk 0:02:05]} 1-0


[Site "https://www.chess.com"]